bitfinex/quotes_BTCUSD_20240906
["timestamp","ask_amount","ask_price","bid_price","bid_amount"]
[1725629340692,1.88511226,56906.0,56905.0,0.00013]
[1725629341401,1.709552,56906.0,56905.0,0.00013]
[1725629342078,1.230379,56893.0,56892.0,0.32744]
[1725629342365,1.4549746,56893.0,56892.0,0.32744]
[1725629344220,1.8065116,56893.0,56892.0,0.00164]
[1725629344719,1.8085116,56893.0,56892.0,0.00164]
[1725629344958,1.9065116,56893.0,56892.0,0.00164]
[1725629345192,2.08807186,56893.0,56892.0,0.00164]
[1725629345645,2.08207186,56893.0,56892.0,0.00164]
[1725629345863,1.9195116,56893.0,56892.0,0.00164]
[1725629346349,1.9065116,56893.0,56892.0,0.00164]
[1725629346570,1.9195116,56893.0,56892.0,0.00164]
[1725629347719,1.582083,56887.0,56886.0,0.00164]
[1725629347948,1.8066786,56887.0,56886.0,0.00164]
[1725629348195,1.8066786,56887.0,56875.0,0.1496]
[1725629348196,1.230747,56876.0,56875.0,0.1496]
[1725629348437,1.8069846,56876.0,56875.0,0.1496]
[1725629348659,1.8069846,56876.0,56875.0,0.16196735]
[1725629348660,1.9069846,56876.0,56875.0,0.16196735]
[1725629348899,1.9069846,56876.0,56875.0,0.1496]
[1725629349689,1.230789,56874.0,56873.0,0.1782]
[1725629349883,1.230789,56874.0,56871.0,0.1449]
[1725629349884,0.879165,56872.0,56871.0,0.1449]
[1725629350105,1.5554266,56872.0,56871.0,0.1449]
[1725629350321,1.9070926,56872.0,56871.0,0.1449]
[1725629351729,1.5554266,56872.0,56871.0,0.1449]
[1725629352439,1.5744266,56872.0,56871.0,0.1449]
[1725629352662,1.5634266,56872.0,56871.0,0.1449]
[1725629352874,1.5554266,56872.0,56871.0,0.1449]
[1725629353110,1.5614266,56872.0,56871.0,0.1449]
[1725629353338,1.5644266,56872.0,56871.0,0.1449]
[1725629354983,1.5554266,56872.0,56871.0,0.1449]
[1725629355425,1.5614266,56872.0,56871.0,0.1449]
[1725629356394,1.2097606,56872.0,56871.0,0.1449]
[1725629356838,0.8580946,56872.0,56871.0,0.30169]
[1725629357070,0.3305956,56872.0,56871.0,0.30169]
[1725629357306,0.3305956,56872.0,56871.0,0.31413048]
[1725629357307,0.106,56872.0,56871.0,0.31413048]
[1725629357559,0.7580946,56872.0,56871.0,0.31413048]
[1725629358243,0.4064286,56872.0,56871.0,0.31413048]
[1725629358477,0.7560946,56872.0,56871.0,0.31413048]
[1725629358711,0.7520946,56872.0,56871.0,0.31413048]
[1725629358951,0.1,56875.0,56872.0,0.1865]
[1725629359200,0.60817057,56886.0,56878.0,0.175813]
[1725629359435,0.11247937,56894.0,56878.0,0.175813]
[1725629359436,0.175794,56885.0,56882.0,0.1865]
[1725629359673,0.2245956,56890.0,56882.0,0.1865]
[1725629359913,0.2245956,56890.0,56879.0,0.36391423]
[1725629359914,0.175794,56885.0,56884.0,0.3146]
[1725629360148,0.52738,56885.0,56884.0,0.3146]
[1725629360383,0.52738,56885.0,56884.0,0.32680284]
[1725629360612,0.62738,56885.0,56884.0,0.32680284]
[1725629361596,0.62738,56885.0,56873.0,0.1489]
[1725629361597,0.879135,56874.0,56873.0,0.1489]
[1725629361849,1.1037306,56874.0,56873.0,0.1489]
[1725629362075,1.2037306,56874.0,56873.0,0.01240392]
[1725629362317,0.879165,56872.0,56871.0,0.175134]
[1725629362773,1.230831,56872.0,56871.0,0.17494097]
[1725629362977,0.879165,56872.0,56871.0,0.17494097]
[1725629363249,1.230831,56872.0,56871.0,0.17494097]
[1725629363485,1.230831,56872.0,56871.0,0.18738145]
[1725629363723,1.230831,56872.0,56871.0,0.17494097]
[1725629364172,1.230831,56872.0,56871.0,0.00144097]
[1725629365151,1.238831,56872.0,56871.0,0.00144097]
[1725629365431,1.235831,56872.0,56871.0,0.00244097]
[1725629365660,1.335831,56872.0,56871.0,0.00244097]
[1725629365893,1.337831,56872.0,56871.0,0.00144097]
[1725629366336,1.341831,56872.0,56871.0,0.00144097]
[1725629366597,1.334831,56872.0,56871.0,0.00144097]
[1725629367046,1.5594266,56872.0,56871.0,0.00144097]
[1725629367744,1.9190926,56872.0,56871.0,0.00144097]
[1725629368214,1.9150926,56872.0,56871.0,0.00144097]
[1725629368435,1.9200926,56872.0,56871.0,0.00244097]
[1725629368876,1.9070926,56872.0,56871.0,0.00144097]
[1725629369335,1.9180926,56872.0,56871.0,0.00144097]
[1725629369988,1.582582,56869.0,56868.0,0.00164]
[1725629370245,1.582582,56869.0,56864.0,0.00164]
[1725629370246,0.527565,56865.0,56864.0,0.00164]
[1725629370482,1.330985,56865.0,56864.0,0.00164]
[1725629370722,1.5555806,56865.0,56864.0,0.18154]
[1725629372600,1.5555806,56865.0,56864.0,0.00164]
[1725629372601,1.5605806,56865.0,56864.0,0.00164]
[1725629373020,1.9212906,56865.0,56864.0,0.00164]
[1725629373282,1.9122906,56865.0,56864.0,0.00164]
[1725629373743,1.9202906,56865.0,56864.0,0.00164]
[1725629374623,1.5685806,56865.0,56864.0,0.00164]
[1725629374858,1.2168706,56865.0,56864.0,0.33044]
[1725629375093,0.8651606,56865.0,56864.0,0.33044]
[1725629375576,1.2168706,56865.0,56864.0,0.33044]
[1725629375803,1.2168706,56865.0,56864.0,0.34300849]
[1725629376030,1.2168706,56865.0,56864.0,0.33044]
[1725629376266,1.2168706,56865.0,56864.0,0.34300849]
[1725629377464,0.5134506,56865.0,56864.0,0.34300849]
[1725629377702,0.8651606,56865.0,56864.0,0.34300849]
[1725629377931,1.2168706,56865.0,56864.0,0.33044]
[1725629378171,1.2168706,56865.0,56864.0,0.34300849]
[1725629378418,1.5685806,56865.0,56864.0,0.01420849]
[1725629378647,1.9202906,56865.0,56864.0,0.01420849]
[1725629378894,1.9202906,56865.0,56864.0,0.00164]
[1725629379153,1.5685806,56865.0,56864.0,0.00164]
[1725629379851,1.9202906,56865.0,56864.0,0.00164]
[1725629380345,1.5685806,56865.0,56864.0,0.00164]
[1725629381323,1.57996616,56865.0,56864.0,0.00164]
[1725629381552,2.11097616,56865.0,56864.0,0.00164]
[1725629381804,1.231135,56858.0,56857.0,0.00164]
[1725629382037,1.4557306,56858.0,56857.0,0.00164]
[1725629382234,1.4557306,56858.0,56857.0,0.01433653]
[1725629382235,1.5557306,56858.0,56857.0,0.01433653]
[1725629382471,1.5557306,56858.0,56857.0,0.00164]
[1725629384628,1.5557306,56858.0,56857.0,0.00364]
[1725629385623,0.01,56868.0,56857.0,0.00364]
[1725629385624,0.2245956,56864.0,56859.0,0.1916]
[1725629385853,0.351729,56862.0,56859.0,0.1916]
[1725629386076,0.17587,56860.0,56859.0,0.1916]
[1725629386564,0.4004656,56860.0,56859.0,0.1916]
[1725629386803,1.4556886,56860.0,56859.0,0.1916]
[1725629387062,1.1039476,56860.0,56859.0,0.1916]
[1725629387534,0.7542066,56860.0,56859.0,0.1916]
[1725629387761,0.4024656,56860.0,56859.0,0.1916]
[1725629387978,1.1059476,56860.0,56859.0,0.1916]
[1725629388253,1.1059476,56860.0,56859.0,0.1926]
[1725629388494,0.7542066,56860.0,56859.0,0.1926]
[1725629388729,0.7542066,56860.0,56859.0,0.1916]
[1725629388970,0.7542066,56860.0,56859.0,0.1936]
[1725629389434,1.1059476,56860.0,56859.0,0.1936]
[1725629389656,1.1039476,56860.0,56859.0,0.1936]
[1725629389873,1.1049476,56860.0,56859.0,0.1936]
[1725629391104,0.001,56860.0,56859.0,0.1936]
[1725629391549,0.001,56860.0,56859.0,0.20625995]
[1725629391804,0.17687,56860.0,56859.0,0.20625995]
[1725629392231,0.001,56860.0,56859.0,0.20625995]
[1725629392719,0.001,56860.0,56859.0,0.38213295]
[1725629392959,0.001,56860.0,56859.0,1.78150213]
[1725629393191,0.000817,56872.0,56859.0,1.78150213]
[1725629393192,0.000817,56872.0,56866.0,0.3377]
[1725629393421,0.17665,56872.0,56871.0,0.3377]
[1725629393653,0.7529116,56872.0,56871.0,0.3377]
[1725629393894,1.1045776,56872.0,56871.0,0.35014048]
[1725629394129,0.7529116,56872.0,56871.0,0.35014048]
[1725629394624,0.7529116,56872.0,56871.0,0.3377]
[1725629394854,0.7599116,56872.0,56871.0,0.3377]
[1725629395088,1.1155776,56872.0,56871.0,0.01244048]
[1725629395331,1.1155776,56872.0,56866.0,0.1407]
[1725629395332,0.527545,56867.0,56866.0,0.3282]
[1725629395570,0.4004436,56867.0,56866.0,0.3282]
[1725629396296,0.2245956,56867.0,56866.0,0.3282]
[1725629397016,0.2255956,56867.0,56866.0,0.3292]
[1725629397707,0.2255956,56867.0,56866.0,0.505052]
[1725629398407,0.2255956,56867.0,56866.0,0.506686]
[1725629398870,0.2255956,56867.0,56866.0,0.330834]
[1725629399800,0.2255956,56867.0,56866.0,0.85839]
[1725629400013,0.001,56867.0,56866.0,0.85839]
[1725629400283,0.001,56867.0,56866.0,1.210094]
[1725629400521,0.000817,56872.0,56871.0,1.4654506]
[1725629400761,0.000817,56872.0,56871.0,2.34573456]
[1725629401009,0.10531282,56899.0,56898.0,0.3319]
[1725629401010,0.05264874,56899.0,56898.0,0.3319]
[1725629401250,0.52650515,56900.0,56898.0,0.1755]
[1725629401501,0.52650515,56900.0,56872.0,0.1794]
[1725629401502,0.68446848,56900.0,56872.0,0.1794]
[1725629401747,0.2245956,56875.0,56872.0,0.3319]
[1725629401988,0.2245956,56879.0,56872.0,0.3319]
[1725629402221,0.351595,56884.0,56873.0,0.00351603]
[1725629402456,0.15796923,56896.0,56873.0,0.00351603]
[1725629402457,0.05263778,56890.0,56889.0,0.17578]
[1725629402701,0.1,56890.0,56889.0,0.1824]
[1725629402945,0.275777,56890.0,56889.0,0.1824]
[1725629403186,0.40355227,56895.0,56889.0,0.1824]
[1725629403187,0.05262331,56895.0,56894.0,0.175765]
[1725629403417,0.05262331,56895.0,56889.0,0.3335]
[1725629403418,0.351535,56894.0,56889.0,0.3335]
[1725629403713,0.05259393,56898.0,56890.0,0.00351529]
[1725629403949,0.2245956,56899.0,56889.0,0.3335]
[1725629403950,0.2245956,56895.0,56889.0,0.3335]
[1725629404194,0.05259393,56899.0,56889.0,0.3365]
[1725629404195,0.2245956,56891.0,56889.0,0.3365]
[1725629404687,0.07889089,56902.0,56890.0,0.19851096]
[1725629404688,0.05259393,56902.0,56890.0,0.19851096]
[1725629404952,0.000817,56905.0,56901.0,0.1869]
[1725629404953,0.05341093,56905.0,56901.0,0.1869]
[1725629405154,0.05341093,56905.0,56890.0,0.20202565]
[1725629405155,0.702962,56902.0,56890.0,0.023]
[1725629405410,0.2245956,56904.0,56890.0,0.023]
[1725629405411,0.175774,56891.0,56890.0,0.1869]
[1725629405649,0.175787,56887.0,56886.0,0.184]
[1725629405888,0.175787,56887.0,56871.0,0.3307]
[1725629405889,0.527499,56872.0,56871.0,0.3307]
[1725629406166,0.527499,56872.0,56870.0,0.00021167]
[1725629406168,0.527509,56871.0,56870.0,0.00021167]
[1725629406407,0.879182,56871.0,56870.0,0.00021167]
[1725629406634,1.230855,56871.0,56870.0,0.00021167]
[1725629406886,0.175836,56871.0,56870.0,0.00021167]
[1725629407116,0.2245956,56872.0,56870.0,0.00021167]
[1725629407387,0.07889089,56881.0,56870.0,0.00021167]
[1725629407388,0.175786,56888.0,56884.0,0.1942]
[1725629407637,0.001,56891.0,56890.0,0.175777]
[1725629407867,0.52650515,56900.0,56890.0,0.36971096]
[1725629408095,0.05256067,56903.0,56900.0,0.1868]
[1725629408096,0.2245956,56903.0,56900.0,0.1868]
[1725629408326,0.2245956,56903.0,56891.0,0.15]
[1725629408327,0.175759,56896.0,56895.0,0.1868]
[1725629408572,1.1033906,56896.0,56895.0,0.1868]
[1725629408802,0.7518726,56896.0,56895.0,0.1868]
[1725629409023,0.2245956,56896.0,56895.0,0.1868]
[1725629409260,0.2245956,56896.0,56891.0,0.3294]
[1725629409490,0.5761166,56896.0,56891.0,0.3294]
[1725629409711,0.5761166,56896.0,56891.0,0.1794]
[1725629409712,0.2245956,56892.0,56891.0,0.1794]
[1725629409986,0.4003666,56892.0,56891.0,0.1794]
[1725629410208,0.175766,56894.0,56891.0,0.1794]
[1725629410438,0.15336797,56905.0,56896.0,0.1479]
[1725629410439,0.100817,56905.0,56896.0,0.1479]
[1725629410674,0.175737,56904.0,56897.0,0.351511]
[1725629410905,0.175744,56901.0,56896.0,0.323658]
[1725629411147,0.175744,56901.0,56893.0,0.1806]
[1725629411148,0.175763,56895.0,56893.0,0.1806]
[1725629411448,0.175763,56895.0,56891.0,0.1519]
[1725629411449,0.175768,56893.0,56892.0,0.1806]
[1725629411891,0.527305,56893.0,56892.0,0.1806]
[1725629412112,0.175768,56893.0,56892.0,0.1806]
[1725629412332,0.29968932,56894.0,56892.0,0.1806]
[1725629412565,0.175764,56895.0,56892.0,0.1806]
[1725629412566,0.002,56895.0,56892.0,0.1806]
[1725629412777,0.002,56895.0,56894.0,0.175765]
[1725629413014,0.1,56898.0,56893.0,0.351533]
[1725629413250,0.175758,56897.0,56893.0,0.00351496]
[1725629413472,0.1,56898.0,56893.0,0.351533]
[1725629413742,0.65616132,56904.0,56903.0,0.175737]
[1725629413743,0.005,56904.0,56903.0,0.175737]
[1725629414005,0.175729,56906.0,56903.0,0.153]
[1725629414242,0.175726,56907.0,56903.0,0.328736]
[1725629414495,0.29968932,56904.0,56894.0,0.1837]
[1725629414717,0.29968932,56904.0,56892.0,0.004]
[1725629414718,0.878842,56893.0,56892.0,0.004]
[1725629414942,0.878842,56893.0,56883.0,0.1904]
[1725629414943,0.175796,56884.0,56883.0,0.1904]
[1725629415233,0.175796,56884.0,56871.0,0.1428]
[1725629415234,0.29968932,56884.0,56871.0,0.1428]
[1725629415473,0.29968932,56871.0,56870.0,0.00021167]
[1725629415688,1.17887132,56871.0,56870.0,0.00021167]
[1725629416160,0.82719832,56871.0,56870.0,0.00021167]
[1725629416406,1.17887132,56871.0,56870.0,0.00021167]
[1725629416886,0.82719832,56871.0,56870.0,0.00021167]
[1725629417106,0.014,56871.0,56870.0,0.52772967]
[1725629417344,0.014,56871.0,56870.0,0.87940867]
[1725629417598,0.014,56871.0,56870.0,0.19131167]
[1725629417983,0.014,56871.0,56870.0,0.36715067]
[1725629418070,0.014,56871.0,56870.0,0.38060944]
[1725629418543,0.29968932,56873.0,56870.0,0.38060944]
[1725629418544,0.47552032,56873.0,56870.0,0.20377044]
[1725629418799,0.002,56871.0,56870.0,0.38460944]
[1725629419035,0.05255097,56894.0,56887.0,0.3299]
[1725629419265,0.52650515,56890.0,56889.0,0.527341]
[1725629419487,0.175763,56895.0,56889.0,0.351561]
[1725629419710,0.65120432,56897.0,56889.0,0.351561]
[1725629419711,0.29968932,56897.0,56889.0,0.01211146]
[1725629419935,0.175763,56895.0,56889.0,0.01211146]
[1725629420177,0.29968932,56897.0,56887.0,0.3299]
[1725629420414,0.19776797,56905.0,56887.0,0.3299]
[1725629420415,0.175783,56888.0,56887.0,0.3299]
[1725629420672,0.35159,56885.0,56882.0,0.1876]
[1725629420898,0.175791,56886.0,56882.0,0.3634]
[1725629421146,0.175791,56886.0,56883.0,0.01222111]
[1725629421392,0.527388,56884.0,56883.0,0.01222111]
[1725629421844,0.175796,56884.0,56883.0,0.01222111]
[1725629422098,0.29968932,56887.0,56881.0,0.00351591]
[1725629422341,0.001,56886.0,56883.0,0.01622111]
[1725629422565,0.176791,56886.0,56883.0,0.004]
[1725629422787,0.175793,56885.0,56884.0,0.01220284]
[1725629423263,0.29968932,56887.0,56883.0,0.176796]
[1725629423264,0.47547632,56887.0,56883.0,0.176796]
[1725629423269,0.175794,56885.0,56883.0,0.001]
[1725629423508,0.29968932,56884.0,56876.0,0.3348]
[1725629423732,0.30368932,56884.0,56876.0,0.3348]
[1725629423955,0.004,56884.0,56883.0,0.357399]
[1725629424194,0.004,56884.0,56883.0,0.90750796]
[1725629424495,0.000817,56890.0,56889.0,0.17578]
[1725629424715,0.000817,56890.0,56889.0,0.527341]
[1725629424973,0.000817,56890.0,56889.0,1.22211296]
[1725629425189,0.175729,56906.0,56900.0,0.099183]
[1725629425428,0.05255097,56912.0,56900.0,0.099183]
[1725629425429,0.52723,56901.0,56900.0,0.099183]
[1725629425674,1.230204,56901.0,56900.0,0.099183]
[1725629425905,0.52723,56901.0,56900.0,0.099183]
[1725629427106,0.878717,56901.0,56900.0,0.099183]
[1725629427341,0.52723,56901.0,56900.0,0.099183]
[1725629427564,0.878717,56901.0,56900.0,0.099183]
[1725629428038,0.175743,56901.0,56900.0,0.099183]
[1725629428294,0.878717,56901.0,56900.0,0.099183]
[1725629428532,0.881717,56901.0,56900.0,0.099183]
[1725629428775,0.52723,56901.0,56900.0,0.100183]
[1725629429012,0.52823,56901.0,56900.0,0.1120935]
[1725629429518,0.176743,56901.0,56900.0,0.1120935]
[1725629429994,0.52823,56901.0,56900.0,0.1120935]
[1725629430244,0.176743,56901.0,56900.0,0.1120935]
[1725629430831,0.63608932,56901.0,56871.0,0.1755]
[1725629431015,0.63608932,56901.0,56870.0,0.00021167]
[1725629431016,0.879182,56871.0,56870.0,0.00021167]
[1725629431509,0.527509,56871.0,56870.0,0.00021167]
[1725629431752,1.37327132,56871.0,56870.0,0.00021167]
[1725629431973,1.96754432,56871.0,56870.0,0.00021167]
[1725629432208,1.678855,56871.0,56870.0,0.00021167]
[1725629432458,1.97854432,56871.0,56870.0,0.00021167]
[1725629432687,0.1,56871.0,56870.0,0.00021167]
[1725629432921,0.41068932,56871.0,56870.0,0.00021167]
[1725629433144,0.93819832,56871.0,56870.0,0.00021167]
[1725629433427,1.63054432,56871.0,56870.0,0.00021167]
[1725629434151,0.979182,56871.0,56870.0,0.00021167]
[1725629434401,0.82719832,56871.0,56870.0,0.00021167]
[1725629434641,1.28787132,56871.0,56870.0,0.00121167]
[1725629434892,0.32268932,56871.0,56870.0,0.001]
[1725629435132,0.29968932,56880.0,56870.0,0.147634]
[1725629435390,0.83819832,56871.0,56870.0,0.001634]
[1725629435612,0.990182,56871.0,56870.0,0.001634]
[1725629435857,0.29968932,56875.0,56870.0,0.001634]
[1725629436096,0.29968932,56889.0,56872.0,0.548966]
[1725629436368,0.29968932,56884.0,56873.0,0.17551096]
[1725629436612,0.29968932,56879.0,56872.0,0.36281096]
[1725629436847,0.29968932,56879.0,56874.0,0.175826]
[1725629437091,0.35166,56873.0,56872.0,0.1873]
[1725629437356,1.17883932,56873.0,56872.0,0.1873]
[1725629437593,0.82717932,56873.0,56872.0,0.1873]
[1725629437838,0.29968932,56873.0,56872.0,0.1873]
[1725629438089,0.351649,56875.0,56872.0,0.1873]
[1725629438090,0.008,56875.0,56873.0,0.35166]
[1725629438357,0.008,56875.0,56872.0,0.1873]
[1725629438358,0.008,56875.0,56874.0,0.70299196]
[1725629438679,0.29968932,56889.0,56881.0,0.175804]
[1725629438923,0.29968932,56889.0,56885.0,0.351583]
[1725629439168,0.29968932,56889.0,56886.0,0.0035154]
[1725629439661,0.30050632,56894.0,56887.0,0.1769]
[1725629439901,0.30050632,56894.0,56890.0,0.175776]
[1725629440144,0.30050632,56894.0,56888.0,0.023]
[1725629440145,0.47627132,56894.0,56888.0,0.023]
[1725629440387,0.175783,56888.0,56887.0,0.1769]
[1725629440633,0.29968932,56889.0,56870.0,0.001634]
[1725629440634,0.351617,56880.0,56871.0,0.1556]
[1725629440873,0.29968932,56873.0,56872.0,0.351666]
[1725629441114,0.29968932,56873.0,56872.0,0.1789]
[1725629441386,0.17583,56873.0,56872.0,0.1789]
[1725629441618,0.47551932,56873.0,56872.0,0.1789]
[1725629441844,0.82717932,56873.0,56872.0,0.1789]
[1725629442545,0.82717932,56873.0,56872.0,0.1929]
[1725629442546,0.30068932,56873.0,56872.0,0.1929]
[1725629442814,0.3516,56883.0,56872.0,0.1929]
[1725629442815,0.000817,56894.0,56888.0,0.351567]
[1725629443036,0.000817,56894.0,56893.0,0.175768]
[1725629443301,0.000817,56894.0,56893.0,1.23045296]
[1725629443767,0.00082,56924.0,56904.0,0.91062132]
[1725629443771,0.00082,56924.0,56904.0,1.23602132]
[1725629443772,0.52650515,56912.0,56904.0,1.23602132]
[1725629444009,0.52650515,56912.0,56904.0,2.13747028]
[1725629444262,0.00082,56924.0,56904.0,2.23747028]
[1725629444531,0.00082,56924.0,56923.0,1.932279]
[1725629444800,0.00082,56951.0,56930.0,0.03194932]
[1725629445052,0.52650515,56944.0,56941.0,1.20973864]
[1725629445281,0.52650515,56944.0,56941.0,2.0241896]
[1725629445505,0.00082,56951.0,56941.0,2.5289296]
[1725629445785,0.00082,56951.0,56946.0,1.56086964]
[1725629446035,0.00082,56956.0,56955.0,1.54092364]
[1725629446284,0.00082,56956.0,56955.0,2.22105328]
[1725629446504,0.00082,56956.0,56955.0,2.66556854]
[1725629447230,0.000816,56960.0,56955.0,2.66556854]
[1725629447231,0.000816,56960.0,56957.0,0.03194932]
[1725629447494,0.000816,56960.0,56959.0,1.10087132]
[1725629447720,0.000816,56960.0,56959.0,1.40138228]
[1725629447937,0.000816,56960.0,56959.0,1.75251128]
[1725629448425,0.000816,56960.0,56959.0,1.90461128]
[1725629449170,0.00082,56962.0,56961.0,1.54645658]
[1725629449394,0.00082,56962.0,56961.0,2.33678454]
[1725629450343,0.00082,56962.0,56961.0,1.84731996]
[1725629450586,0.00082,56962.0,56961.0,1.76726928]
[1725629451363,0.00082,56962.0,56959.0,0.379128]
[1725629451364,0.00082,56962.0,56959.0,0.014]
[1725629451583,0.00082,56962.0,56961.0,1.06330296]
[1725629451813,0.00182,56962.0,56961.0,0.72818596]
[1725629452035,0.00282,56962.0,56961.0,0.72818596]
[1725629452269,0.00182,56962.0,56961.0,1.06330296]
[1725629452539,0.00182,56962.0,56961.0,1.24950296]
[1725629452755,0.00882,56962.0,56961.0,1.24950296]
[1725629453003,0.00782,56962.0,56961.0,1.24850296]
[1725629453249,0.00782,56962.0,56961.0,1.75951996]
[1725629453488,0.00782,56962.0,56961.0,1.78051996]
[1725629454666,0.00882,56962.0,56961.0,1.05928596]
[1725629454890,0.00882,56962.0,56961.0,0.70816896]
[1725629455114,0.00882,56962.0,56953.0,0.351161]
[1725629455115,0.175566,56959.0,56955.0,0.1828]
[1725629455338,0.176375,56962.0,56961.0,0.011]
[1725629455581,0.97400126,56962.0,56961.0,0.025]
[1725629455802,1.32511226,56962.0,56961.0,0.014]
[1725629456044,0.44833526,56962.0,56961.0,0.011]
[1725629456335,0.00282,56962.0,56961.0,0.537675]
[1725629456537,0.00082,56962.0,56961.0,0.175558]
[1725629456755,0.00082,56962.0,56961.0,1.05330296]
[1725629456969,0.00082,56962.0,56961.0,1.41441996]
[1725629457216,0.00082,56962.0,56961.0,1.60241996]
[1725629457438,0.00082,56962.0,56961.0,1.77511996]
[1725629457439,0.00282,56962.0,56961.0,1.77511996]
[1725629457668,0.00282,56962.0,56961.0,2.12623696]
[1725629457931,0.00282,56962.0,56961.0,1.77511996]
[1725629458176,0.00382,56962.0,56961.0,1.76511996]
[1725629458678,0.00282,56962.0,56953.0,0.496261]
[1725629458916,0.00282,56962.0,56961.0,0.014]
[1725629458917,0.177375,56962.0,56961.0,0.014]
[1725629459188,0.177375,56962.0,56961.0,0.025]
[1725629459189,0.880597,56962.0,56961.0,0.025]
[1725629459419,0.00082,56962.0,56961.0,0.35106896]
[1725629459670,0.00082,56962.0,56961.0,1.75591996]
[1725629459916,0.00282,56962.0,56961.0,1.78091996]
[1725629460138,0.00282,56962.0,56961.0,1.40680296]
[1725629460139,0.00182,56962.0,56961.0,1.40680296]
[1725629460362,0.00182,56962.0,56961.0,1.06730296]
[1725629460593,0.00182,56962.0,56961.0,1.45141996]
[1725629461090,0.00582,56962.0,56961.0,1.45141996]
[1725629461325,0.00582,56962.0,56961.0,1.45341996]
[1725629461563,0.00482,56962.0,56961.0,1.43941996]
[1725629461852,0.00482,56962.0,56961.0,1.43741996]
[1725629462294,0.00582,56962.0,56961.0,1.44941996]
[1725629462523,0.00182,56962.0,56961.0,1.08830296]
[1725629463007,0.00182,56962.0,56961.0,1.43741996]
[1725629463224,0.00082,56962.0,56961.0,1.43741996]
[1725629463450,0.00182,56962.0,56961.0,1.45141996]
[1725629463675,0.00182,56962.0,56961.0,1.62611996]
[1725629464151,0.00282,56962.0,56961.0,1.64611996]
[1725629464422,0.00282,56962.0,56961.0,1.63611996]
[1725629464642,0.00282,56962.0,56961.0,1.28500296]
[1725629464885,0.00282,56962.0,56961.0,1.24800296]
[1725629464886,0.00182,56962.0,56961.0,1.24800296]
[1725629465123,0.00182,56962.0,56961.0,1.06330296]
[1725629465363,0.00282,56962.0,56961.0,1.07730296]
[1725629465610,0.00282,56962.0,56961.0,1.10030296]
[1725629465845,0.00282,56962.0,56961.0,0.01]
[1725629466073,0.97300126,56962.0,56961.0,0.01]
[1725629466319,0.526722,56956.0,56955.0,0.001632]
[1725629466542,1.84763326,56956.0,56955.0,0.001632]
[1725629466789,2.65992926,56956.0,56955.0,0.001632]
[1725629467008,2.65992926,56956.0,56929.0,0.52650515]
[1725629467009,0.351308,56930.0,56929.0,0.52650515]
[1725629467239,0.022,56948.0,56929.0,0.52650515]
[1725629467240,0.002,56946.0,56929.0,0.52650515]
[1725629467469,0.01,56947.0,56922.0,0.351355]
[1725629467470,0.175659,56929.0,56922.0,0.351355]
[1725629467730,0.44451526,56940.0,56922.0,0.17551096]
[1725629468006,0.1,56942.0,56922.0,0.17551096]
[1725629468007,0.1,56939.0,56931.0,0.17565]
[1725629468251,0.54650515,56950.0,56932.0,0.00351245]
[1725629468252,0.52650515,56950.0,56932.0,0.00351245]
[1725629468490,0.351199,56948.0,56932.0,0.17902341]
[1725629468735,0.35121,56946.0,56936.0,0.175634]
[1725629468996,0.1,56949.0,56933.0,0.17551096]
[1725629469267,0.1,56949.0,56937.0,0.17551096]
[1725629469758,0.1,56949.0,56936.0,0.175634]
[1725629469759,0.175618,56942.0,56936.0,0.175634]
[1725629469760,0.175618,56942.0,56929.0,0.002]
[1725629469761,0.175649,56932.0,56926.0,0.175665]
[1725629469997,0.44451526,56940.0,56929.0,0.351312]
[1725629470242,0.44451526,56940.0,56920.0,0.1889]
[1725629470243,0.1455,56936.0,56920.0,0.1889]
[1725629470455,0.175636,56936.0,56932.0,0.001]
[1725629470711,0.1455,56943.0,56932.0,0.001]
[1725629470712,0.175645,56933.0,56932.0,0.001]
[1725629470954,0.526935,56933.0,56932.0,0.001]
[1725629471199,0.878225,56933.0,56932.0,0.001]
[1725629471440,1.068525,56933.0,56932.0,0.001]
[1725629471950,0.175683,56921.0,56915.0,0.351399]
[1725629472208,0.1539,56924.0,56916.0,0.175696]
[1725629472209,0.175685,56920.0,56916.0,0.175696]
[1725629472457,0.1539,56924.0,56908.0,0.541443]
[1725629472704,0.1539,56924.0,56912.0,0.351416]
[1725629472937,0.1539,56924.0,56900.0,0.002]
[1725629472938,0.351428,56911.0,56902.0,0.35148]
[1725629473173,0.2757,56923.0,56898.0,0.00164]
[1725629473174,0.44451526,56908.0,56898.0,0.00164]
[1725629473443,0.44451526,56901.0,56898.0,0.00164]
[1725629473692,0.87875,56899.0,56898.0,0.00164]
[1725629473929,0.87875,56899.0,56872.0,0.1585]
[1725629473930,0.44451526,56887.0,56871.0,0.00164]
[1725629474193,0.351583,56886.0,56879.0,0.52650515]
[1725629474444,0.01,56896.0,56871.0,0.00164]
[1725629474445,0.351629,56878.0,56871.0,0.00164]
[1725629474676,0.1419,56877.0,56871.0,0.177474]
[1725629474926,0.1419,56877.0,56871.0,0.00164]
[1725629475175,0.527499,56872.0,56871.0,0.00164]
[1725629475417,0.175833,56872.0,56871.0,0.00164]
[1725629475642,0.1,56876.0,56871.0,0.00164]
[1725629475643,0.351642,56876.0,56871.0,0.00164]
[1725629475927,0.44451526,56880.0,56871.0,0.00164]
[1725629475928,0.1475,56883.0,56871.0,0.00515663]
[1725629476162,0.009,56877.0,56871.0,0.00264]
[1725629476674,0.175825,56875.0,56871.0,0.00264]
[1725629476890,0.175833,56872.0,56871.0,0.00364]
[1725629477208,0.527499,56872.0,56871.0,0.00264]
[1725629477353,0.36998118,56877.0,56871.0,0.00164]
[1725629477593,0.1,56876.0,56871.0,0.00564]
[1725629477802,0.01834518,56877.0,56871.0,0.00164]
[1725629478022,0.01834518,56877.0,56876.0,0.175821]
[1725629478249,0.44451526,56892.0,56872.0,0.1794]
[1725629478250,0.14,56889.0,56872.0,0.1794]
[1725629478513,0.01834518,56885.0,56877.0,0.351635]
[1725629478729,0.01834518,56885.0,56873.0,0.35517292]